fUST/lending_fUST_20260117
["ID","MTS","AMOUNT","RATE_DAILY","PERIOD"]
[402323411,1768659045556,-1000.0,0.00014247,2]
[402323413,1768659045565,-1000.0,0.00014247,2]
[402323415,1768659045574,-748.3708511,0.00014247,2]
[402323417,1768659045585,-1097.74982003,0.00014247,2]
[402323419,1768659045594,-500.43334725,0.00014247,2]
[402323421,1768659045604,-1000.0,0.00014247,2]
[402323423,1768659045613,-778.0,0.00014268,2]
[402323425,1768659045622,-239.92258785,0.0001433,7]
[402323427,1768659045632,-250.0,0.00014335,2]
[402323429,1768659045641,-151.0,0.00014335,2]
[402323431,1768659045651,-162.380719,0.00014335,2]
[402323433,1768659045661,-250.0,0.00014335,2]
[402323435,1768659045670,-151.0,0.00014335,2]
[402323437,1768659045679,-250.0,0.00014335,2]
[402323439,1768659045689,-201.18700456,0.00014335,2]
[402323441,1768659045698,-250.0,0.00014335,2]
[402323443,1768659045708,-162.380719,0.00014335,2]
[402323445,1768659045717,-168.3888056,0.00014335,2]
[402323448,1768659045727,-445.202766,0.00014335,2]
[402323450,1768659045736,-174.61919141,0.00014335,2]
[402323452,1768659045745,-181.08010149,0.00014335,2]
[402323454,1768659045754,-187.78006525,0.00014335,2]
[402323456,1768659045763,-1957.856,0.00014335,2]
[402323458,1768659045772,-151.0,0.00014335,2]
[402323460,1768659045781,-194.72792766,0.00014335,2]
[402323463,1768659045792,-201.93286099,0.00014335,2]
[402323465,1768659045802,-151.0,0.00014335,2]
[402323467,1768659045811,-209.40437684,0.00014335,2]
[402323469,1768659045820,-151.0,0.00014335,2]
[402323471,1768659045829,-151.0,0.00014335,2]
[402323473,1768659045839,-250.0,0.00014335,2]
[402323475,1768659045851,-217.15233878,0.00014335,2]
[402323477,1768659045861,-151.0,0.00014335,2]
[402323479,1768659045871,-151.0,0.00014335,2]
[402323481,1768659045880,-250.0,0.00014335,2]
[402323483,1768659045893,-151.0,0.00014335,2]
[402323485,1768659045903,-225.18697532,0.00014335,2]
[402323487,1768659045913,-151.0,0.00014335,2]
[402323489,1768659045925,-151.0,0.00014335,2]
[402323491,1768659045934,-250.0,0.00014335,2]
[402323493,1768659045943,-233.51889341,0.00014335,2]
[402323495,1768659045952,-151.0,0.00014335,2]
[402323497,1768659045962,-151.0,0.00014335,2]
[402323499,1768659045971,-250.0,0.00014335,2]
[402323501,1768659045980,-151.0,0.00014335,2]
[402323503,1768659045990,-151.0,0.00014335,2]
[402323505,1768659045999,-242.15909246,0.00014335,2]
[402323507,1768659046008,-250.0,0.00014335,2]
[402323509,1768659046017,-151.0,0.00014335,2]
[402323511,1768659046026,-193.25034379,0.00014335,2]
[402323513,1768659046036,-251.11897888,0.00014335,2]
[402323515,1768659046045,-250.0,0.00014335,2]
[402323517,1768659046054,-151.0,0.00014335,2]
[402323519,1768659046063,-250.0,0.00014335,2]
[402323521,1768659046072,-250.0,0.00014335,2]
[402323523,1768659046082,-151.0,0.00014335,2]
[402323525,1768659046091,-151.0,0.00014335,2]
[402323527,1768659046100,-250.0,0.00014335,2]
[402323529,1768659046110,-2150.738,0.00014335,2]
[402323531,1768659046119,-250.0,0.00014335,2]
[402323533,1768659046129,-151.0,0.00014335,2]
[402323535,1768659046139,-250.0,0.00014335,2]
[402323537,1768659046149,-151.0,0.00014335,2]
[402323539,1768659046159,-250.0,0.00014335,2]
[402323541,1768659046168,-151.0,0.00014335,2]
[402323542,1768659046177,-250.0,0.00014335,2]
[402323543,1768659046186,-151.0,0.00014335,2]
[402323544,1768659046195,-260.4103811,0.00014335,2]
[402323545,1768659046205,-250.0,0.00014335,2]
[402323546,1768659046214,-151.0,0.00014335,2]
[402323547,1768659046223,-270.0455652,0.00014335,2]
[402323548,1768659046232,-151.0,0.00014335,2]
[402323549,1768659046242,-280.03725112,0.00014335,2]
[402323551,1768659046252,-151.0,0.00014335,2]
[402323553,1768659046262,-290.39862941,0.00014335,2]
[402323555,1768659046271,-301.1433787,0.00014335,2]
[402323557,1768659046281,-30000.0,0.00014335,2]
[402323559,1768659046291,-2000.0,0.00014335,2]
[402323561,1768659046301,-2000.0,0.00014335,2]
[402323563,1768659046310,-300.946978,0.00014335,2]
[402323565,1768659046319,-300.946978,0.00014335,2]
[402323567,1768659046329,-300.946978,0.00014335,2]
[402323569,1768659046338,-300.946978,0.00014335,2]
[402323571,1768659046347,-1470.89070314,0.00014368,2]
[402323573,1768659046357,-500.0,0.00014368,2]
[402323575,1768659046366,-1500.0,0.00014368,2]
[402323577,1768659046375,-1500.0,0.00014368,2]
[402323579,1768659046384,-500.85139614,0.00014368,2]
[402323581,1768659046394,-1500.0,0.00014368,2]
[402323583,1768659046403,-1500.0,0.00014368,2]
[402323585,1768659046412,-500.0,0.00014368,2]
[402323587,1768659046422,-1500.0,0.00014368,2]
[402323589,1768659046431,-500.0,0.00014368,2]
[402323591,1768659046441,-1500.0,0.00014368,2]
[402323593,1768659046450,-1500.0,0.00014368,2]
[402323595,1768659046461,-2030.296672,0.0001439,2]
[402323597,1768659046471,-410.47653165,0.00014399,2]
[402323599,1768659046481,-778.0,0.00014405,2]
[402323601,1768659046490,-2105.41764886,0.00014445,2]
[402323603,1768659046499,-2183.31810187,0.000145,2]
[402323605,1768659046508,-5000.0,0.0001451,2]
[402323607,1768659046517,-4940.52682695,0.00014531,2]
[402323609,1768659046527,-778.0,0.00014542,2]
[402323611,1768659046536,-2264.10087164,0.00014555,2]
[402323613,1768659046545,-1498.58969849,0.0001461,2]
[402323615,1768659046554,-199.93548987,0.00014659,7]
[402323617,1768659046565,-783.42207071,0.00014679,2]
[402323619,1768659046574,-900.0,0.00014768,2]
[402323621,1768659046583,-13205.58024209,0.00014783,2]
[402323623,1768659046593,-1500.0,0.00014795,2]
[402323625,1768659046602,-660.83132082,0.00014795,2]
[402323627,1768659046612,-1500.0,0.00014795,2]
[402323629,1768659046621,-1500.0,0.00014795,2]
[402323631,1768659046631,-1500.0,0.00014795,2]
[402323633,1768659046641,-1493.74297815,0.00014795,2]
[402323635,1768659046650,-201.38164885,0.00014795,2]
[402323637,1768659046660,-1500.0,0.00014795,2]
[402323639,1768659046669,-1500.0,0.00014795,2]
[402323641,1768659046678,-1500.0,0.00014795,2]
[402323643,1768659046688,-1500.0,0.00014795,2]
[402323645,1768659046697,-502.31117812,0.00014795,2]
[402323647,1768659046707,-519.10615049,0.00014795,2]
[402323649,1768659046716,-648.13731473,0.00014795,2]
[402323651,1768659046725,-166.91973232,0.00014795,2]
[402323653,1768659046735,-1500.0,0.00014795,2]
[402323655,1768659046744,-461.67526834,0.00014883,2]
[402323657,1768659046754,-151.0,0.00014883,2]
[402323659,1768659046763,-2230.315306,0.00014883,2]
[402323661,1768659046772,-31110.0,0.00014883,2]
[402323663,1768659046782,-403.96853636,0.000149,2]
[402323665,1768659046791,-403.96853636,0.000149,2]
[402323667,1768659046800,-403.96853636,0.000149,2]
[402323669,1768659046810,-504.04282277,0.00014916,2]
[402323671,1768659046819,-2000.0,0.00014916,2]
[402323673,1768659046828,-500.0,0.00014916,2]
[402323675,1768659046837,-2000.0,0.00014916,2]
[402323677,1768659046851,-2000.0,0.00014916,2]
[402323679,1768659046860,-2000.0,0.00014916,2]
[402323681,1768659046869,-1504.15629489,0.00014916,2]
[402323683,1768659046879,-317.531912,0.00015068,2]
[402323685,1768659046889,-1152.0,0.00015199,2]
[402323687,1768659046898,-952.0,0.00015225,2]
[402323689,1768659046908,-1200.0,0.00015316,2]
[402323691,1768659046919,-2000.0,0.00015342,2]
[402323693,1768659046928,-1561.32249094,0.00015342,2]
[402323695,1768659046937,-2000.0,0.00015342,2]
[402323697,1768659046947,-2123.55526284,0.00015342,2]
[402323699,1768659046956,-2000.0,0.00015342,2]
[402323701,1768659046965,-2000.0,0.00015342,2]
[402323703,1768659046975,-1503.66607308,0.00015342,2]
[402323705,1768659046985,-1500.0,0.000154,2]
[402323707,1768659046994,-1500.0,0.000154,2]
[402323709,1768659047004,-2045.40363,0.000154,2]
[402323711,1768659047013,-452.52060236,0.000154,2]
[402323713,1768659047023,-180.52907696,0.000154,2]
[402323715,1768659047033,-163.28,0.000154,2]
[402323717,1768659047042,-150.84020076,0.000154,2]
[402323719,1768659047051,-973.24371897,0.000154,30]
[402323721,1768659047060,-13904.919543,0.000154,7]
[402323723,1768659047069,-478.75725327,0.00015431,2]
[402323725,1768659047079,-2312.83697232,0.00015431,2]
[402323728,1768659047089,-32261.07,0.00015431,2]
[402323729,1768659047099,-500.0,0.00015464,2]
[402323732,1768659047108,-206.44598023,0.00015464,2]
[402323734,1768659047117,-2500.0,0.00015464,2]
[402323735,1768659047127,-500.0,0.00015464,2]
[402323738,1768659047136,-163.28,0.000156,2]
[402323740,1768659047146,-192.96098043,0.00015704,2]
[402323742,1768659047155,-500.0,0.00015749,30]
[402323743,1768659047165,-500.0,0.00015749,30]
[402323746,1768659047175,-500.0,0.00015749,30]
[402323747,1768659047184,-500.0,0.00015749,30]
[402323749,1768659047194,-500.0,0.00015749,30]
[402323751,1768659047204,-500.0,0.00015749,30]
[402323753,1768659047214,-500.0,0.00015749,30]
[402323756,1768659047223,-429.0582887,0.00015749,30]
[402323757,1768659047232,-500.0,0.00015749,30]
[402323759,1768659047242,-500.0,0.00015749,30]
[402323762,1768659047254,-500.0,0.00015749,30]
[402323763,1768659047266,-500.0,0.00015749,30]
[402323766,1768659047275,-500.0,0.00015749,30]
[402323768,1768659047285,-500.0,0.00015749,30]
[402323769,1768659047294,-500.0,0.00015749,30]
[402323772,1768659047303,-500.0,0.00015749,30]
[402323773,1768659047313,-500.4887792,0.00015749,30]
[402323775,1768659047322,-500.0,0.00015749,30]
[402323777,1768659047332,-500.0,0.00015749,30]
[402323779,1768659047341,-500.0,0.00015749,30]
[402323781,1768659047350,-500.0,0.00015749,30]
[402323783,1768659047359,-500.0,0.00015749,30]
[402323785,1768659047368,-500.0,0.00015749,30]
[402323787,1768659047377,-500.0,0.00015749,30]
[402323790,1768659047386,-500.0,0.00015749,30]
[402323792,1768659047396,-500.0,0.00015749,30]
[402323794,1768659047405,-500.0,0.00015749,30]
[402323796,1768659047415,-163.28,0.000158,2]
[402323797,1768659047424,-261.666,0.00015832,2]
[402323800,1768659047434,-200.096,0.00015832,2]
[402323802,1768659047443,-267.705,0.00015832,2]
[402323804,1768659047453,-1367.0,0.00015832,2]
[402323806,1768659047463,-661.646,0.00015832,2]
[402323807,1768659047473,-2147.0,0.00015832,2]
[402323809,1768659047483,-300.946978,0.00015832,2]
[402323811,1768659047491,-300.946978,0.00015832,2]
[402323813,1768659047500,-300.946978,0.00015832,2]
[402323815,1768659047510,-300.946978,0.00015832,2]
[402323818,1768659047520,-1503.86573033,0.00015864,2]
[402323820,1768659047530,-500.0,0.0001589,2]
[402323821,1768659047539,-1706.13735223,0.0001589,2]
[402323823,1768659047549,-2500.0,0.0001589,2]
[402323825,1768659047558,-159.0,0.000159,2]
[402323828,1768659047569,-159.0,0.000159,2]
[402323829,1768659047579,-377.8688684,0.00015941,2]
[402323832,1768659047590,-4940.52682695,0.00015942,2]
[402323834,1768659047600,-547.841218,0.00015942,7]
[402323836,1768659047609,-496.47127164,0.00015979,2]
[402323838,1768659047620,-2398.4119403,0.00015979,2]
[402323840,1768659047629,-33454.72959,0.00015979,2]
[402323842,1768659047644,-251521.03984941,0.00015989,2]
[402323844,1768659047655,-3000.0,0.00016,2]
[402323846,1768659047664,-3000.0,0.0001601,2]
[402323848,1768659047673,-1369.603044,0.0001601,7]
[402323850,1768659047683,-3000.0,0.00016012,2]
[402323852,1768659047692,-3331.666553,0.0001602,2]
[402323854,1768659047701,-452.52060236,0.00016034,9]
[402323856,1768659047711,-377.8688684,0.00016041,2]
[402323858,1768659047721,-500.0,0.00016164,3]
[402323860,1768659047731,-150.32930833,0.00016164,3]
[402323862,1768659047740,-500.0,0.00016164,3]
[402323864,1768659047749,-165.80293607,0.00016164,3]
[402323866,1768659047758,-500.0,0.00016164,3]
[402323868,1768659047768,-1450.222952,0.00016164,7]
[402323870,1768659047777,-637.66218595,0.0001617,30]
[402323873,1768659047789,-581.52407848,0.00016301,3]
[402323875,1768659047798,-500.0,0.00016301,3]
[402323877,1768659047808,-150.90043421,0.00016301,3]
[402323879,1768659047817,-500.0,0.00016301,3]
[402323881,1768659047827,-200.051564,0.00016301,7]
[402323883,1768659047837,-464.80430789,0.00016399,2]
[402323885,1768659047849,-3000.0,0.00016428,2]
[402323887,1768659047859,-212.54773642,0.00016437,2]
[402323889,1768659047869,-419.99180641,0.00016438,3]
[402323891,1768659047879,-500.0,0.00016438,3]
[402323893,1768659047893,-190.47763541,0.00016438,3]
[402323895,1768659047903,-150.70214574,0.00016438,3]
[402323897,1768659047915,-500.0,0.00016438,3]
[402323899,1768659047926,-644.00223298,0.00016438,3]
[402323901,1768659047936,-500.0,0.00016438,3]
[402323903,1768659047946,-500.0,0.00016438,3]
[402323905,1768659047955,-295.27790826,0.00016438,3]
[402323907,1768659047964,-978.82,0.00016438,3]
[402323909,1768659047973,-435.32524061,0.00016438,3]
[402323911,1768659047987,-500.0,0.00016438,3]
[402323913,1768659047996,-246.89631936,0.00016438,3]
[402323915,1768659048005,-500.0,0.00016438,3]
[402323917,1768659048015,-506.44158247,0.00016438,3]
[402323919,1768659048025,-500.0,0.00016438,3]
[402323921,1768659048034,-1000.0,0.00016438,2]
[402323923,1768659048044,-1229.39,0.00016438,3]
[402323925,1768659048053,-500.0,0.00016438,3]
[402323927,1768659048062,-500.0,0.00016438,3]
[402323929,1768659048071,-500.0,0.00016438,3]
[402323931,1768659048081,-556.53,0.00016438,3]
[402323933,1768659048092,-500.0,0.00016438,3]
[402323935,1768659048101,-500.0,0.00016438,3]
[402323937,1768659048110,-500.0,0.00016438,3]
[402323939,1768659048119,-500.0,0.00016438,3]
[402323941,1768659048129,-500.0,0.00016438,3]
[402323943,1768659048139,-500.0,0.00016438,3]
[402323945,1768659048148,-500.0,0.00016438,3]
[402323947,1768659048157,-672.56,0.00016438,3]
[402323949,1768659048166,-500.0,0.00016438,3]
[402323951,1768659048176,-792.58,0.00016438,3]
[402323953,1768659048185,-504.49,0.00016438,3]
[402323955,1768659048195,-673.73,0.00016438,3]
[402323957,1768659048204,-500.0,0.00016438,3]
[402323959,1768659048214,-567.58,0.00016438,3]
[402323961,1768659048224,-1022.08,0.00016438,3]
[402323963,1768659048233,-500.0,0.00016438,3]
[402323965,1768659048242,-500.3248332,0.00016438,3]
[402323967,1768659048251,-500.0,0.00016438,3]
[402323969,1768659048262,-500.0,0.00016438,3]
[402323972,1768659048272,-500.0,0.00016438,2]
[402323974,1768659048282,-364.95482423,0.00016438,2]
[402323975,1768659048291,-500.0,0.00016438,2]
[402323977,1768659048301,-500.0,0.00016438,2]
[402323980,1768659048310,-762.34,0.00016438,3]
[402323982,1768659048320,-500.0,0.00016438,3]
[402323984,1768659048330,-950.57,0.00016438,3]
[402323986,1768659048340,-500.0,0.00016438,3]
[402323988,1768659048350,-500.0,0.00016438,3]
[402323990,1768659048360,-500.0,0.00016438,3]
[402323992,1768659048371,-500.0,0.00016438,3]
[402323994,1768659048380,-500.0,0.00016438,3]
[402323996,1768659048389,-500.0,0.00016438,3]
[402323998,1768659048398,-500.0,0.00016438,3]
[402324000,1768659048407,-500.0,0.00016438,3]
[402324002,1768659048416,-1072.24,0.00016438,3]
[402324004,1768659048426,-500.0,0.00016438,3]
[402324006,1768659048436,-500.0,0.00016438,3]
[402324008,1768659048446,-500.0,0.00016438,3]
[402324010,1768659048456,-500.0,0.00016438,3]
[402324012,1768659048465,-500.0,0.00016438,3]
[402324014,1768659048475,-500.0,0.00016438,3]
[402324016,1768659048485,-507.22,0.00016438,3]
[402324018,1768659048495,-500.0,0.00016438,3]
[402324020,1768659048505,-500.0,0.00016438,3]
[402324022,1768659048518,-500.0,0.00016438,3]
[402324024,1768659048528,-500.0,0.00016438,3]
[402324026,1768659048538,-500.0,0.00016438,3]
[402324028,1768659048547,-613.24737358,0.00016438,3]
[402324030,1768659048557,-225.94247433,0.00016438,3]
[402324033,1768659048567,-500.0,0.00016438,3]
[402324035,1768659048577,-643.98345217,0.00016438,3]
[402324037,1768659048587,-504.02216576,0.00016438,3]
[402324039,1768659048595,-836.71,0.00016438,3]
[402324041,1768659048604,-500.0,0.00016438,3]
[402324043,1768659048613,-500.0,0.00016438,3]
[402324045,1768659048623,-500.0,0.00016438,3]
[402324047,1768659048633,-500.0,0.00016438,3]
[402324049,1768659048643,-500.0,0.00016438,3]
[402324051,1768659048652,-500.0,0.00016438,3]
[402324053,1768659048662,-500.0,0.00016438,3]
[402324055,1768659048672,-544.53494198,0.00016438,3]
[402324057,1768659048683,-500.0,0.00016438,3]
[402324059,1768659048693,-500.0,0.00016438,3]
[402324062,1768659048704,-500.0,0.00016438,3]
[402324064,1768659048714,-325.21716664,0.00016438,3]
[402324066,1768659048723,-500.0,0.00016438,3]
[402324068,1768659048732,-1098.82,0.00016438,3]
[402324070,1768659048742,-500.0,0.00016438,3]
[402324072,1768659048751,-500.0,0.00016438,3]
[402324074,1768659048761,-501.17354468,0.00016438,3]
[402324076,1768659048771,-500.0,0.00016438,3]
[402324078,1768659048781,-500.0,0.00016438,3]
[402324080,1768659048791,-500.0,0.00016438,3]
[402324082,1768659048801,-1864.45,0.00016438,3]
[402324084,1768659048811,-500.0,0.00016438,3]
[402324086,1768659048820,-500.0,0.00016438,3]
[402324088,1768659048830,-772.16,0.00016438,3]
[402324090,1768659048841,-500.0,0.00016438,3]
[402324092,1768659048854,-469.18172049,0.00016438,3]
[402324094,1768659048864,-500.0,0.00016438,3]
[402324096,1768659048874,-523.8,0.00016438,3]
[402324098,1768659048884,-500.0,0.00016438,3]
[402324101,1768659048895,-500.0,0.00016438,3]
[402324103,1768659048905,-500.0,0.00016438,3]
[402324105,1768659048914,-500.92721642,0.00016438,3]
[402324107,1768659048924,-509.99937096,0.00016438,3]
[402324109,1768659048934,-500.0,0.00016438,3]
[402324111,1768659048944,-785.13,0.00016438,3]
[402324113,1768659048953,-500.0,0.00016438,3]
[402324115,1768659048963,-500.0,0.00016438,3]
[402324117,1768659048973,-500.0,0.00016438,3]
[402324119,1768659048983,-1777.27,0.00016438,3]
[402324121,1768659048992,-500.0,0.00016438,3]
[402324123,1768659049002,-875.55,0.00016438,3]
[402324125,1768659049011,-500.0,0.00016438,3]
[402324127,1768659049021,-964.42,0.00016438,3]
[402324129,1768659049030,-564.35,0.00016438,3]
[402324131,1768659049040,-612.1,0.00016438,3]
[402324133,1768659049050,-500.0,0.00016438,3]
[402324135,1768659049060,-500.0,0.00016438,3]
[402324137,1768659049069,-643.39,0.00016438,3]
[402324139,1768659049079,-478.32257424,0.00016438,3]
[402324141,1768659049088,-976.59,0.00016438,3]
[402324143,1768659049098,-151.0,0.00016438,2]
[402324145,1768659049108,-500.0,0.00016438,3]
[402324147,1768659049118,-974.97,0.00016438,3]
[402324150,1768659049128,-1699.56,0.00016438,3]
[402324151,1768659049138,-500.0,0.00016438,3]
[402324154,1768659049148,-500.0,0.00016438,3]
[402324156,1768659049159,-500.0,0.00016438,3]
[402324158,1768659049169,-500.0,0.00016438,3]
[402324160,1768659049180,-999.91,0.00016438,3]
[402324162,1768659049190,-500.0,0.00016438,3]
[402324164,1768659049199,-500.0,0.00016438,3]
[402324166,1768659049209,-530.71,0.00016438,3]
[402324168,1768659049220,-500.0,0.00016438,3]
[402324170,1768659049230,-741.6,0.00016438,3]
[402324172,1768659049241,-1003.52,0.00016438,3]
[402324174,1768659049250,-500.0,0.00016438,3]
[402324176,1768659049260,-500.0,0.00016438,3]
[402324178,1768659049270,-565.41,0.00016438,3]
[402324180,1768659049279,-500.0,0.00016438,3]
[402324182,1768659049289,-979.46,0.00016438,3]
[402324185,1768659049299,-895.32,0.00016438,3]
[402324187,1768659049308,-464.68587701,0.00016438,3]
[402324189,1768659049318,-904.31,0.00016438,3]
[402324191,1768659049328,-500.0,0.00016438,3]
[402324193,1768659049339,-903.29,0.00016438,3]
[402324195,1768659049349,-500.0,0.00016438,3]
[402324197,1768659049358,-500.0,0.00016438,3]
[402324199,1768659049369,-500.0,0.00016438,3]
[402324201,1768659049380,-500.0,0.00016438,3]
[402324203,1768659049389,-500.0,0.00016438,3]
[402324205,1768659049400,-500.0,0.00016438,3]
[402324207,1768659049412,-1000.0,0.00016438,2]
[402324209,1768659049422,-500.0,0.00016438,3]
[402324211,1768659049432,-500.0,0.00016438,3]
[402324214,1768659049442,-500.0,0.00016438,3]
[402324216,1768659049453,-692.98,0.00016438,3]
[402324218,1768659049463,-500.0,0.00016438,3]
[402324220,1768659049473,-500.0,0.00016438,3]
[402324222,1768659049483,-151.0,0.00016438,2]
[402324224,1768659049493,-500.0,0.00016438,2]
[402324226,1768659049503,-500.0,0.00016438,3]
[402324228,1768659049512,-500.0,0.00016438,3]
[402324230,1768659049522,-500.0,0.00016438,3]
[402324232,1768659049531,-1541.12,0.00016438,3]
[402324234,1768659049541,-500.0,0.00016438,3]
[402324236,1768659049552,-1586.94,0.00016438,3]
[402324238,1768659049562,-500.0,0.00016438,3]
[402324240,1768659049571,-500.0,0.00016438,3]
[402324242,1768659049581,-500.0,0.00016438,3]
[402324244,1768659049591,-500.0,0.00016438,3]
[402324246,1768659049600,-500.0,0.00016438,3]
[402324249,1768659049610,-500.0,0.00016438,3]
[402324251,1768659049622,-557.26,0.00016438,3]
[402324253,1768659049635,-1200.0,0.00016438,2]
[402324255,1768659049644,-500.0,0.00016438,3]
[402324257,1768659049654,-505.74293991,0.00016438,3]
[402324259,1768659049663,-960.56,0.00016438,3]
[402324261,1768659049673,-500.0,0.00016438,3]
[402324263,1768659049683,-1187.76,0.00016438,3]
[402324265,1768659049693,-500.0,0.00016438,3]
[402324267,1768659049703,-524.86,0.00016438,3]
[402324269,1768659049713,-500.0,0.00016438,3]
[402324271,1768659049723,-500.0,0.00016438,3]
[402324273,1768659049733,-424.34553456,0.00016438,3]
[402324275,1768659049742,-500.0,0.00016438,3]
[402324277,1768659049752,-500.0,0.00016438,3]
[402324279,1768659049761,-500.0,0.00016438,3]
[402324281,1768659049770,-2078.62,0.00016438,3]
[402324283,1768659049780,-500.0,0.00016438,3]
[402324286,1768659049790,-500.0,0.00016438,3]
[402324288,1768659049799,-500.0,0.00016438,3]
[402324290,1768659049809,-510.56,0.00016438,3]
[402324292,1768659049818,-500.0,0.00016438,3]
[402324294,1768659049827,-500.0,0.00016438,3]
[402324296,1768659049837,-500.0,0.00016438,3]
[402324298,1768659049852,-535.27896173,0.00016438,3]
[402324300,1768659049861,-500.0,0.00016438,3]
[402324302,1768659049871,-500.0,0.00016438,3]
[402324304,1768659049881,-500.0,0.00016438,3]
[402324306,1768659049892,-500.0,0.00016438,3]
[402324308,1768659049902,-504.11,0.00016438,3]
[402324311,1768659049912,-500.0,0.00016438,3]
[402324313,1768659049923,-500.0,0.00016438,3]
[402324315,1768659049934,-545.70994322,0.00016438,3]
[402324317,1768659049943,-513.00114578,0.00016438,3]
[402324319,1768659049953,-500.0,0.00016438,3]
[402324321,1768659049963,-500.0,0.00016438,3]
[402324323,1768659049973,-500.0,0.00016438,3]
[402324325,1768659049982,-1289.75,0.00016438,3]
[402324327,1768659049992,-500.0,0.00016438,3]
[402324329,1768659050001,-500.0,0.00016438,3]
[402324331,1768659050011,-500.0,0.00016438,3]
[402324333,1768659050021,-500.0,0.00016438,3]
[402324335,1768659050031,-759.35,0.00016438,3]
[402324337,1768659050041,-500.0,0.00016438,3]
[402324340,1768659050051,-500.0,0.00016438,3]
[402324342,1768659050061,-500.0,0.00016438,3]
[402324344,1768659050070,-500.0,0.00016438,3]
[402324346,1768659050080,-500.0,0.00016438,3]
[402324348,1768659050090,-566.37,0.00016438,3]
[402324350,1768659050099,-500.0,0.00016438,3]
[402324352,1768659050109,-500.0,0.00016438,3]
[402324354,1768659050118,-985.63,0.00016438,3]
[402324356,1768659050128,-1802.89,0.00016438,3]
[402324358,1768659050138,-500.0,0.00016438,3]
[402324360,1768659050147,-500.0,0.00016438,3]
[402324362,1768659050157,-924.88,0.00016438,3]
[402324364,1768659050166,-500.0,0.00016438,3]
[402324366,1768659050176,-500.0,0.00016438,3]
[402324368,1768659050186,-500.64885102,0.00016438,3]
[402324370,1768659050196,-500.0,0.00016438,3]
[402324372,1768659050206,-500.0,0.00016438,3]
[402324374,1768659050215,-875.06,0.00016438,3]
[402324376,1768659050225,-788.81,0.00016438,3]
[402324378,1768659050235,-611.86349143,0.00016438,3]
[402324380,1768659050245,-614.31374356,0.00016438,3]
[402324382,1768659050255,-500.0,0.00016438,3]
[402324384,1768659050265,-500.0,0.00016438,3]
[402324386,1768659050275,-500.0,0.00016438,3]
[402324388,1768659050285,-172.6105479,0.00016438,3]
[402324389,1768659050295,-523.17,0.00016438,3]
[402324390,1768659050304,-500.0,0.00016438,3]
[402324391,1768659050314,-1398.2,0.00016438,3]
[402324392,1768659050324,-500.0,0.00016438,3]
[402324393,1768659050333,-500.0,0.00016438,3]
[402324394,1768659050343,-500.0,0.00016438,3]
[402324395,1768659050353,-752.83,0.00016438,3]
[402324396,1768659050363,-500.0,0.00016438,3]
[402324397,1768659050373,-500.0,0.00016438,3]
[402324398,1768659050382,-500.0,0.00016438,3]
[402324399,1768659050392,-500.0,0.00016438,3]
[402324401,1768659050402,-1507.14,0.00016438,3]
[402324403,1768659050412,-500.0,0.00016438,3]
[402324405,1768659050421,-500.0,0.00016438,3]